{"text_format":"1","workbook":"xlsx","n_sheets":2,"sheets":["SPGT","Datos"],"not_rendered":{"charts":0,"images":1,"macros":0,"external_links":0,"defined_names":1,"comments":1,"pivot_tables":0},"unopened":[],"bounds":{"document_bytes":16777216,"sheet_cells":100000,"rows_first":2000,"rows_last":500,"rows_between":2000,"halvings":0,"cell_chars":16384,"cell_head_chars":4096},"cells_cut":0,"cells_raw":0,"read":"whole","date_system":"1900"}

{"sheet":"SPGT","index":0,"n_rows":121,"n_cols":6,"rows_kept":121,"cut":false,"hidden":false,"merged":[[10,3,10,5],[11,3,11,5],[12,3,12,5],[13,3,13,5],[114,4,115,4],[114,5,115,8],[113,2,113,3],[114,2,114,3],[117,1,117,8],[112,1,112,8],[100,1,100,7],[15,3,15,5],[16,3,16,5],[118,2,118,3],[118,5,118,8],[119,2,119,3],[119,4,120,4],[119,5,120,8],[120,2,120,3],[115,2,115,3],[113,5,113,8],[110,1,110,3],[103,1,103,3],[103,5,103,8],[106,5,106,8],[104,5,104,8],[104,1,104,3],[110,5,110,8],[107,1,107,3],[108,1,108,3],[109,1,109,3],[107,5,107,8],[108,5,108,8],[109,5,109,8],[105,1,105,3],[105,5,105,8],[106,1,106,3],[3,2,3,7],[5,2,5,3],[6,2,6,7],[101,1,101,7],[1,1,1,8],[8,6,8,8],[7,1,7,8],[4,5,4,7],[5,5,5,7],[8,3,8,5],[4,2,4,3],[9,6,98,6],[9,8,98,8],[9,1,16,1],[14,3,14,5],[9,3,9,5]]}
[]
[null,"Asesoría Plan de Desarrollo Territorial- PDT\n(Capítulo Fortalecimiento Institucional)"]
[]
[null,"Entidad/Dependencia:"]
[null,"Municipio/Ciudad:",null,null,"Departamento"]
[null,"Diligenciado por:",null,null,"Fecha:"]
[null,"Dirección Técnica:",{"$f":"VLOOKUP(B10,Datos!$C$2:$D$6,2,FALSE)","v":"Dirección de Desarrollo Organizacional - DDO"}]
[]
[null,"Tema","Ítem","Hitos"]
[1,"Ajuste a Proyecto de PDT",{"$f":"IFERROR(VLOOKUP(CONCATENATE(A10,$B$10),Datos!$A$9:$F$38,4,FALSE),\"\")","v":1},{"$f":"IFERROR(VLOOKUP(CONCATENATE(A10,$B$10),Datos!$A$9:$F$38,5,FALSE),\"\")","v":" CTP y CAR entregan concepto sobre proyecto de PDT y la ET revisa"}]
[2,null,{"$f":"IFERROR(VLOOKUP(CONCATENATE(A11,$B$10),Datos!$A$9:$F$38,4,FALSE),\"\")","v":2},{"$f":"IFERROR(VLOOKUP(CONCATENATE(A11,$B$10),Datos!$A$9:$F$38,5,FALSE),\"\")","v":" Definir metodología y cronograma de audiencias públicas del PPI"}]
[3,null,{"$f":"IFERROR(VLOOKUP(CONCATENATE(A12,$B$10),Datos!$A$9:$F$38,4,FALSE),\"\")","v":3},{"$f":"IFERROR(VLOOKUP(CONCATENATE(A12,$B$10),Datos!$A$9:$F$38,5,FALSE),\"\")","v":" Realizar las audiencias públicas del PPI"}]
[4,null,{"$f":"IFERROR(VLOOKUP(CONCATENATE(A13,$B$10),Datos!$A$9:$F$38,4,FALSE),\"\")","v":4},{"$f":"IFERROR(VLOOKUP(CONCATENATE(A13,$B$10),Datos!$A$9:$F$38,5,FALSE),\"\")","v":" Ajuste proyecto de PDT con base en concepto de CTP, CAR y ejercicios participativos"}]
[5,null,{"$f":"IFERROR(VLOOKUP(CONCATENATE(A14,$B$10),Datos!$A$9:$F$38,4,FALSE),\"\")","v":""},{"$f":"IFERROR(VLOOKUP(CONCATENATE(A14,$B$10),Datos!$A$9:$F$38,5,FALSE),\"\")","v":""}]
[6,null,{"$f":"IFERROR(VLOOKUP(CONCATENATE(A15,$B$10),Datos!$A$9:$F$38,4,FALSE),\"\")","v":""},{"$f":"IFERROR(VLOOKUP(CONCATENATE(A15,$B$10),Datos!$A$9:$F$38,5,FALSE),\"\")","v":""}]
[7,null,{"$f":"IFERROR(VLOOKUP(CONCATENATE(A16,$B$10),Datos!$A$9:$F$38,4,FALSE),\"\")","v":""},{"$f":"IFERROR(VLOOKUP(CONCATENATE(A16,$B$10),Datos!$A$9:$F$38,5,FALSE),\"\")","v":""}]
[8,null,{"$f":"IFERROR(VLOOKUP(CONCATENATE(A17,$B$10),Datos!$A$9:$F$38,4,FALSE),\"\")","v":""},{"$f":"IFERROR(VLOOKUP(CONCATENATE(A17,$B$10),Datos!$A$9:$F$38,5,FALSE),\"\")","v":""}]
[null,null,{"$f":"IF(F18=\"\",\"\",C17+1)","v":""}]
[null,null,""]
[null,null,""]
[null,null,""]
[null,null,""]
[null,null,""]
[null,null,""]
[null,null,""]
[null,null,""]
[null,null,""]
[null,null,""]
[null,null,""]
[null,null,""]
[null,null,""]
[null,null,""]
[null,null,""]
[null,null,""]
[null,null,""]
[null,null,""]
[null,null,""]
[null,null,""]
[null,null,""]
[null,null,""]
[null,null,""]
[null,null,""]
[null,null,""]
[null,null,""]
[null,null,""]
[null,null,""]
[null,null,""]
[null,null,""]
[null,null,""]
[null,null,{"$f":"IF(F50=\"\",\"\",C49+1)","v":""}]
[null,null,""]
[null,null,""]
[null,null,""]
[null,null,""]
[null,null,""]
[null,null,""]
[null,null,""]
[null,null,""]
[null,null,""]
[null,null,""]
[null,null,""]
[null,null,""]
[null,null,""]
[null,null,""]
[null,null,""]
[null,null,""]
[null,null,""]
[null,null,""]
[null,null,""]
[null,null,""]
[null,null,""]
[null,null,""]
[null,null,""]
[null,null,""]
[null,null,""]
[null,null,""]
[null,null,""]
[null,null,""]
[null,null,""]
[null,null,""]
[null,null,""]
[null,null,{"$f":"IF(F82=\"\",\"\",C81+1)","v":""}]
[null,null,""]
[null,null,""]
[null,null,""]
[null,null,""]
[null,null,""]
[null,null,""]
[null,null,""]
[null,null,""]
[null,null,""]
[null,null,""]
[null,null,""]
[null,null,""]
[null,null,""]
[null,null,""]
[null,null,""]
[null,null,""]
[null,null,""]
[]
[null,"¿En qué avanzamos?"]
[]
[]
[null,"Compromisos",null,null,"Fecha Entrega","Responsable"]
[]
[]
[]
[]
[]
[]
[]
[]
[null,"Responsable por parte de Función Pública:"]
[null,"Nombre:",null,null,"Cargo:"]
[null,"Dependencia:",null,null,"Firma:"]
[null,"Correo electrónico:"]
[]
[null,"Responsable por parte de la Entidad asesorada:"]
[null,"Nombre:",null,null,"Cargo:"]
[null,"Dependencia:",null,null,"Firma:"]
[null,"Correo electrónico:"]

{"sheet":"Datos","index":1,"n_rows":38,"n_cols":6,"rows_kept":38,"cut":false,"hidden":true,"merged":[]}
[null,"Ítem","Temas","Dependencia"]
[null,1,"Fase preparatoria y diagnóstica del PDT","Dirección de Desarrollo Organizacional - DDO"]
[null,2,"Estructuración propuesta proyecto de PDT","Dirección de Desarrollo Organizacional - DDO"]
[null,3,"Ajuste a Proyecto de PDT","Dirección de Desarrollo Organizacional - DDO"]
[null,4,"Entrega del proyecto PDT a la corporación pública","Dirección de Desarrollo Organizacional - DDO"]
[null,5,"Discusión y aprobación del PDT","Dirección de Desarrollo Organizacional - DDO"]
[]
[]
[null,"Ítem","Tema","Ítem Hito","Hitos","Dependencia"]
[{"$f":"CONCATENATE(D10,C10)","v":"1Fase preparatoria y diagnóstica del PDT"},1,"Fase preparatoria y diagnóstica del PDT",1," Conformación del equipo (incluido secretario de planeación)","DDO"]
[{"$f":"CONCATENATE(D11,C11)","v":"2Fase preparatoria y diagnóstica del PDT"},1,"Fase preparatoria y diagnóstica del PDT",2," Habilitar usuario líder en el KPT","DDO"]
["3Fase preparatoria y diagnóstica del PDT",1,"Fase preparatoria y diagnóstica del PDT",3," Taller sobre estrutura del PDT y Uso del KPT","DDO"]
["4Fase preparatoria y diagnóstica del PDT",1,"Fase preparatoria y diagnóstica del PDT",4," Definir estructura del PDT en Consejo de Gobierno","DDO"]
["5Fase preparatoria y diagnóstica del PDT",1,"Fase preparatoria y diagnóstica del PDT",5," Convotatoria al proceso de renovación del CTP","DDO"]
["6Fase preparatoria y diagnóstica del PDT",1,"Fase preparatoria y diagnóstica del PDT",6," Definir metodología y cronograma ejercicios participativos","DDO"]
["7Fase preparatoria y diagnóstica del PDT",1,"Fase preparatoria y diagnóstica del PDT",7," Diagnóstico completo de la ET (incluido lo financiero)","DDO"]
["1Estructuración propuesta proyecto de PDT",2,"Estructuración propuesta proyecto de PDT",1," CTP renovado según normatividad","DDO"]
["2Estructuración propuesta proyecto de PDT",2,"Estructuración propuesta proyecto de PDT",2," Sistematización del proceso participativo del PDT","DDO"]
["3Estructuración propuesta proyecto de PDT",2,"Estructuración propuesta proyecto de PDT",3," Proyecto de PDT completo (PE+PPI)","DDO"]
["4Estructuración propuesta proyecto de PDT",2,"Estructuración propuesta proyecto de PDT",4," Proyecto de PDT completo entregado a CTP y autoridad ambiental","DDO"]
["1Ajuste a Proyecto de PDT",3,"Ajuste a Proyecto de PDT",1," CTP y CAR entregan concepto sobre proyecto de PDT y la ET revisa","DDO"]
["2Ajuste a Proyecto de PDT",3,"Ajuste a Proyecto de PDT",2," Definir metodología y cronograma de audiencias públicas del PPI","DDO"]
["3Ajuste a Proyecto de PDT",3,"Ajuste a Proyecto de PDT",3," Realizar las audiencias públicas del PPI","DDO"]
["4Ajuste a Proyecto de PDT",3,"Ajuste a Proyecto de PDT",4," Ajuste proyecto de PDT con base en concepto de CTP, CAR y ejercicios participativos","DDO"]
["1Entrega del proyecto PDT a la corporación pública",4,"Entrega del proyecto PDT a la corporación pública",1," Citar a sesiones ordiarias o extraordinarias (cuando aplique) de la corporación pública","DDO"]
["2Entrega del proyecto PDT a la corporación pública",4,"Entrega del proyecto PDT a la corporación pública",2," Elaborar el proyecto de acuerdo u ordenanza del PDT","DDO"]
["3Entrega del proyecto PDT a la corporación pública",4,"Entrega del proyecto PDT a la corporación pública",3," Entrega del PDT a la corporación pública","DDO"]
["1Discusión y aprobación del PDT",5,"Discusión y aprobación del PDT",1," Discusión del proyecto de PDT en comisión del plan","DDO"]
["2Discusión y aprobación del PDT",5,"Discusión y aprobación del PDT",2," Discusión del proyecto de PDT en comisión del plenaria","DDO"]
["3Discusión y aprobación del PDT",5,"Discusión y aprobación del PDT",3," Publicar PDT aprobado en web","DDO"]
["4Discusión y aprobación del PDT",5,"Discusión y aprobación del PDT",4," Aprobación de PDT","DDO"]
["",null,null,null,null,"DDO"]
["",null,null,null,null,"DDO"]
["",null,null,null,null,"DDO"]
["",null,null,null,null,"DGDI"]
["",null,null,null,null,"DGDI"]
["",null,null,null,null,"DGDI"]
["",null,null,null,null,"DGDI"]